fUSD/lending_fUSD_20241110
["ID","MTS","AMOUNT","RATE_DAILY","PERIOD"]
[341898531,1731274242828,-500.0,0.00014849,2]
[341898532,1731274242838,-500.0,0.00014849,2]
[341898533,1731274242848,-12011.77,0.00014849,2]
[341898534,1731274242857,-7568.85842881,0.00014849,2]
[341898535,1731274242869,-1579.08477309,0.00014849,2]
[341898540,1731274243465,-286.28580693,0.00014724,2]
[341898541,1731274243478,-380.38419307,0.00014724,2]
[341898542,1731274243487,-666.67,0.00014848,2]
[341898543,1731274243496,-666.67,0.00014848,2]
[341898544,1731274243506,-2863.8267981,0.00014849,2]
[341898545,1731274243515,-12011.77,0.00014849,2]
[341898546,1731274243525,-12011.77,0.00014849,2]
[341898547,1731274243534,-12011.77,0.00014849,2]
[341898548,1731274243543,-196.641736,0.00014849,2]
[341898549,1731274243553,-500.0,0.00014849,2]
[341898550,1731274243562,-500.0,0.00014849,2]
[341898551,1731274243571,-500.0,0.00014849,2]
[341898552,1731274243580,-500.0,0.00014849,2]
[341898553,1731274243589,-500.0,0.00014849,2]
[341898554,1731274243599,-500.0,0.00014849,2]
[341898555,1731274243608,-500.0,0.00014849,2]
[341898556,1731274243617,-500.0,0.00014849,2]
[341898557,1731274243626,-500.0,0.00014849,2]
[341898558,1731274243638,-500.0,0.00014849,2]
[341898559,1731274243648,-574.25,0.00014849,2]
[341898560,1731274243657,-574.25,0.00014849,2]
[341898561,1731274243666,-574.25,0.00014849,2]
[341898562,1731274243675,-574.25,0.00014849,2]
[341898563,1731274243685,-574.25,0.00014849,2]
[341898565,1731274243695,-679.32,0.00014849,2]
[341898566,1731274243704,-679.32,0.00014849,2]
[341898567,1731274243714,-679.32,0.00014849,2]
[341898568,1731274243724,-679.32,0.00014849,2]
[341898569,1731274243733,-679.32,0.00014849,2]
[341898570,1731274243743,-1899.44,0.00014849,2]
[341898571,1731274243752,-1899.44,0.00014849,2]
[341898573,1731274243762,-500.0,0.00014849,2]
[341898575,1731274243772,-1899.44,0.00014849,2]
[341898576,1731274243781,-500.0,0.00014849,2]
[341898577,1731274243791,-1899.44,0.00014849,2]
[341898578,1731274243800,-500.0,0.00014849,2]
[341898579,1731274243815,-1899.44,0.00014849,2]
[341898580,1731274243824,-500.0,0.00014849,2]
[341898581,1731274243833,-500.0,0.00014849,2]
[341898582,1731274243843,-1928.88,0.00014849,2]
[341898583,1731274243852,-1928.88,0.00014849,2]
[341898584,1731274243860,-1928.88,0.00014849,2]
[341898585,1731274243870,-1928.88,0.00014849,2]
[341898586,1731274243879,-1928.88,0.00014849,2]
[341898587,1731274243891,-2205.21,0.00014849,2]
[341898588,1731274243900,-2205.21,0.00014849,2]
[341898589,1731274243909,-2205.21,0.00014849,2]
[341898590,1731274243918,-2205.21,0.00014849,2]
[341898591,1731274243928,-829.53,0.00014849,2]
[341898592,1731274243937,-24.03681541,0.00014849,2]
[341898593,1731274243950,-2181.17318459,0.00014849,2]
[341898594,1731274243960,-829.53,0.00014849,2]
[341898595,1731274243969,-829.53,0.00014849,2]
[341898596,1731274243978,-829.53,0.00014849,2]
[341898597,1731274243987,-829.53,0.00014849,2]
[341898598,1731274243997,-1757.77,0.00014849,2]
[341898599,1731274244006,-69.95750649,0.00014849,2]
[341898600,1731274244046,-1687.81249351,0.00014849,2]
[341898601,1731274244055,-1757.77,0.00014849,2]
[341898602,1731274244064,-1459.77086023,0.00014849,2]
[341898603,1731274244075,-297.99913977,0.00014849,2]
[341898604,1731274244084,-1109.41,0.00014849,2]
[341898605,1731274244094,-1583.24895523,0.00014849,2]
[341898606,1731274244105,-174.52104477,0.00014849,2]
[341898607,1731274244114,-1109.41,0.00014849,2]
[341898608,1731274244124,-1109.41,0.00014849,2]
[341898609,1731274244134,-1109.41,0.00014849,2]
[341898610,1731274244143,-1109.41,0.00014849,2]
[341898611,1731274244152,-9243.9608838,0.00014849,2]
[341898612,1731274244163,-405.54,0.00014849,2]
[341898613,1731274244174,-1255.70005,0.00014849,2]
[341898614,1731274244186,-4265.7790662,0.00014849,2]
[341898615,1731274244195,-672.23239696,0.00014849,2]
[341898616,1731274244207,-14498.74760304,0.00014849,2]
[341898617,1731274244216,-15170.98,0.00014849,2]
[341898619,1731274244226,-9763.73978239,0.00014849,2]
[341898620,1731274244238,-5407.24021761,0.00014849,2]
[341898621,1731274244248,-15170.98,0.00014849,2]
[341898622,1731274244257,-500.0,0.00014849,2]
[341898623,1731274244267,-500.0,0.00014849,2]
[341898624,1731274244277,-500.0,0.00014849,2]
[341898625,1731274244286,-500.0,0.00014849,2]
[341898626,1731274244295,-500.0,0.00014849,2]
[341898627,1731274244305,-500.0,0.00014849,2]
[341898629,1731274244314,-500.0,0.00014849,2]
[341898630,1731274244324,-500.0,0.00014849,2]
[341898631,1731274244334,-500.0,0.00014849,2]
[341898633,1731274244343,-500.0,0.00014849,2]
[341898634,1731274244353,-944.72,0.00014849,2]
[341898635,1731274244363,-944.72,0.00014849,2]
[341898637,1731274244372,-944.72,0.00014849,2]
[341898639,1731274244381,-944.72,0.00014849,2]
[341898641,1731274244392,-944.72,0.00014849,2]
[341898643,1731274244402,-2401.88,0.00014849,2]
[341898644,1731274244414,-2401.88,0.00014849,2]
[341898645,1731274244423,-2401.88,0.00014849,2]
[341898646,1731274244433,-2401.88,0.00014849,2]
[341898647,1731274244442,-2401.88,0.00014849,2]
[341898648,1731274244453,-1332.9,0.00014849,2]
[341898649,1731274244462,-1332.9,0.00014849,2]
[341898650,1731274244471,-1332.9,0.00014849,2]
[341898651,1731274244481,-1332.9,0.00014849,2]
[341898652,1731274244491,-1332.9,0.00014849,2]
[341898653,1731274244500,-500.0,0.00014849,2]
[341898654,1731274244509,-177.07386476,0.00014849,2]
[341898655,1731274244519,-1274.7,0.00014849,2]
[341898656,1731274244528,-1274.7,0.00014849,2]
[341898657,1731274244538,-1274.7,0.00014849,2]
[341898658,1731274244548,-1274.7,0.00014849,2]
[341898659,1731274244557,-1274.7,0.00014849,2]
[341898660,1731274244567,-14556.26,0.00014849,2]
[341898661,1731274244577,-3247.44591763,0.00014849,2]
[341898662,1731274244590,-396.19708152,0.00014849,2]
[341898663,1731274244610,-3942.79174562,0.00014849,2]
[341898664,1731274244623,-6969.82525523,0.00014849,2]
[341898665,1731274244633,-960.27302677,0.00014849,2]
[341898666,1731274244645,-7067.13632171,0.00014849,2]
[341898667,1731274244656,-1355.91065152,0.00014849,2]
[341898668,1731274244665,-14556.26,0.00014849,2]
[341898669,1731274244675,-9383.32,0.00014849,2]
[341898670,1731274244685,-14556.26,0.00014849,2]
[341898671,1731274244695,-9383.32,0.00014849,2]
[341898672,1731274244706,-14556.26,0.00014849,2]
[341898673,1731274244716,-9383.32,0.00014849,2]
[341898674,1731274244724,-6143.8775108,0.00014849,2]
[341898680,1731274246276,-500.0,0.00014553,2]
[341898681,1731274246287,-268.44067885,0.00014695,2]
[341898682,1731274246298,-500.0,0.00014794,2]
[341898683,1731274246308,-719.48517609,0.00014795,2]
[341898684,1731274246325,-139.88482391,0.00014795,2]
[341898685,1731274246335,-3239.4424892,0.00014849,2]
[341898686,1731274246346,-902.51,0.00014849,2]
[341898687,1731274246356,-902.51,0.00014849,2]
[341898688,1731274246366,-902.51,0.00014849,2]
[341898689,1731274246376,-902.51,0.00014849,2]
[341898690,1731274246386,-902.51,0.00014849,2]
[341898691,1731274246397,-500.0,0.00014849,2]
[341898692,1731274246409,-500.0,0.00014849,2]
[341898693,1731274246419,-500.0,0.00014849,2]
[341898694,1731274246429,-14779.26,0.00014849,2]
[341898695,1731274246439,-500.0,0.00014849,2]
[341898696,1731274246449,-185.09631381,0.00014849,2]
[341898697,1731274246459,-4760.12173118,0.00014849,2]
[341898698,1731274246472,-10019.13826882,0.00014849,2]
[341898699,1731274246484,-507.79,0.00014849,2]
[341898700,1731274246494,-507.79,0.00014849,2]
[341898701,1731274246504,-507.79,0.00014849,2]
[341898702,1731274246514,-14779.26,0.00014849,2]
[341898703,1731274246524,-507.79,0.00014849,2]
[341898704,1731274246534,-14779.26,0.00014849,2]
[341898705,1731274246545,-507.79,0.00014849,2]
[341898706,1731274246555,-14779.26,0.00014849,2]
[341898707,1731274246565,-500.0,0.00014849,2]
[341898708,1731274246576,-500.0,0.00014849,2]
[341898709,1731274246587,-500.0,0.00014849,2]
[341898710,1731274246599,-500.0,0.00014849,2]
[341898711,1731274246608,-500.0,0.00014849,2]
[341898712,1731274246618,-500.0,0.00014849,2]
[341898713,1731274246627,-500.0,0.00014849,2]
[341898714,1731274246636,-500.0,0.00014849,2]
[341898715,1731274246646,-500.0,0.00014849,2]
[341898716,1731274246657,-338.55,0.00014849,2]
[341898717,1731274246666,-500.0,0.00014849,2]
[341898718,1731274246676,-500.0,0.00014849,2]
[341898719,1731274246686,-15358.46,0.00014849,2]
[341898721,1731274246695,-15358.46,0.00014849,2]
[341898723,1731274246705,-10644.08587465,0.00014849,2]
[341898724,1731274246714,-4714.37412535,0.00014849,2]
[341898725,1731274246723,-15358.46,0.00014849,2]
[341898726,1731274246732,-15358.46,0.00014849,2]
[341898727,1731274246739,-500.0,0.00014849,2]
[341898728,1731274246748,-500.0,0.00014849,2]
[341898729,1731274246760,-1051.67,0.00014849,2]
[341898730,1731274246769,-500.0,0.00014849,2]
[341898731,1731274246780,-1051.67,0.00014849,2]
[341898732,1731274246791,-440.32807865,0.00014849,2]
[341898733,1731274246804,-611.34192135,0.00014849,2]
[341898734,1731274246815,-500.0,0.00014849,2]
[341898735,1731274246825,-1051.67,0.00014849,2]
[341898736,1731274246835,-209.3409564,0.00014849,2]
[341898737,1731274246859,-290.6590436,0.00014849,2]
[341898738,1731274246870,-1051.67,0.00014849,2]
[341898739,1731274246880,-15.55557622,0.00014849,2]
[341898746,1731274340646,158.0,0.00038322,30]
[341898749,1731274451722,3000.0,0.00038344,120]
[341898755,1731274700572,1706.05,0.00011431,2]
[341898759,1731274803088,150.0,0.00011431,2]
[341898765,1731274958187,150.0,0.00013,5]
[341898766,1731275033719,1083649.89956968,0.00038331,30]
[341898767,1731275076587,1107643.71549209,0.00038331,30]
[341898768,1731275123844,84872.53441752,0.00038331,30]
[341898770,1731275232370,408.45251129,0.00038331,30]
[341898771,1731275232673,408.45251129,0.00038331,30]
[341898772,1731275232957,408.45251129,0.00038331,30]
[341898773,1731275233225,408.45251129,0.00038331,30]
[341898774,1731275233509,408.45251129,0.00038331,30]
[341898775,1731275238725,20409.69468636,0.00038331,30]
[341898776,1731275238952,20409.69468636,0.00038331,30]
[341898777,1731275239276,20409.69468636,0.00038331,30]
[341898778,1731275239559,20409.69468636,0.00038331,30]
[341898779,1731275239860,20409.69468636,0.00038331,30]
[341898780,1731275246924,6479.04956623,0.00038331,30]
[341898781,1731275247101,6479.04956623,0.00038331,30]
[341898782,1731275247283,3826.70523635,0.00038331,30]
[341898783,1731275343063,151.88098468,0.00027,60]
[341898788,1731275362796,1620.74,0.00011148,2]
[341898797,1731275431352,-1096.45580484,0.00012566,2]
[341898798,1731275431361,-475.71,0.00012567,2]
[341898799,1731275431370,-5769.00439516,0.00013013,2]
[341898800,1731275431387,-158.34560484,0.00013013,2]
[341898801,1731275431396,-980.0,0.00013026,2]
[341898802,1731275431405,-300.0,0.00013047,2]
[341898803,1731275431414,-150.0,0.00013048,2]
[341898804,1731275431423,-9119.42225571,0.00013048,2]
[341898805,1731275431434,-2200.0,0.00013048,2]
[341898806,1731275431723,-449.4,0.00013048,2]
[341898861,1731275437426,-2134.2238846,0.00013048,2]
[341898862,1731275437458,-13750.30614883,0.00013048,2]
[341898863,1731275437488,-255.53745705,0.00013048,2]
[341898864,1731275437515,-5002.99971566,0.00013048,2]
[341898865,1731275437629,-1111.14398307,0.00013048,2]
[341898866,1731275437641,-3140.0,0.00013048,2]
[341898889,1731275438011,-839.65686087,0.00013048,2]
[341899030,1731275439459,-382.14470905,0.00013048,2]
[341899034,1731275439487,-398.110075,0.00013048,2]
[341899046,1731275439593,-1701.76781344,0.00013048,2]
[341899049,1731275439605,-2045.97051651,0.00013048,2]
[341899051,1731275439616,-327.61289998,0.00013048,2]
[341899053,1731275439627,-1037.85099995,0.00013048,2]
[341899055,1731275439637,-3185.52,0.00013048,2]
[341899357,1731275442441,-1744.71572511,0.00013048,2]
[341899389,1731275442731,-592.08511467,0.00013048,2]
[341899391,1731275442743,-581.5318405,0.00013048,2]
[341899393,1731275442753,-261.21600082,0.00013049,2]
[341899395,1731275442764,-6206.08399918,0.00013049,2]
[341899397,1731275442777,-1000.0,0.00013049,2]
[341899399,1731275442787,-668.81470085,0.00013049,2]
[341899401,1731275442801,-402.84529915,0.00013049,2]
[341899402,1731275442811,-200.0,0.00013049,2]
[341899403,1731275442820,-133.57883254,0.00013066,2]
[341899648,1731275445393,-35.59116746,0.00013066,2]
[341899649,1731275445404,-3628.5,0.00013066,2]
[341899651,1731275445413,-1269.6,0.00013066,2]
[341899653,1731275445423,-150.99,0.00013066,2]
[341899655,1731275445432,-1410.38,0.00013081,2]
[341899656,1731275445441,-812.06,0.00013139,2]
[341899658,1731275445451,-673.78378254,0.00013139,2]
[341899661,1731275445463,-442.40621746,0.00013139,2]
[341899662,1731275445472,-158.65335012,0.00013159,2]
[341899664,1731275445484,-2379.11664988,0.00013159,2]
[341899666,1731275445494,-150.0,0.00013167,2]
[341899668,1731275445503,-477.59,0.00013189,2]
[341899670,1731275445513,-250.0,0.00013213,2]
[341899672,1731275445522,-13297.73400931,0.00013222,2]
[341899674,1731275445536,-292.51888216,0.00013222,2]
[341899678,1731275445563,-253.01826357,0.00013222,2]
[341899697,1731275445770,-9451.22489719,0.00013222,2]
[341900396,1731275599823,150.111107,0.00027,60]
[341900397,1731275600662,150.111107,0.00027,60]
[341900398,1731275601113,150.111107,0.00027,60]
[341900399,1731275601626,150.111107,0.00027,60]
[341900400,1731275602071,150.111107,0.00027,60]
[341900401,1731275602594,150.111107,0.00027,60]
[341900402,1731275603320,150.111107,0.00027,60]
[341900403,1731275603594,150.111107,0.00027,60]
[341900404,1731275604093,150.111107,0.00027,60]
[341900405,1731275604561,150.111107,0.00027,60]
[341900406,1731275898562,206.41257231,0.00027,60]
[341900407,1731276177521,1539.7,0.00011258,2]
[341900412,1731276491072,-229.76215425,0.00013062,2]
[341900413,1731276491101,-250.0,0.00013145,2]
[341900414,1731276491136,-250.0,0.0001315,2]
[341900415,1731276491165,-165.09,0.00013162,2]
[341900416,1731276491572,-380.57,0.00013192,2]
[341900417,1731276491642,-8724.57784575,0.00013192,2]
[341900418,1731276514200,-59.03123135,0.00013192,2]
[341900419,1731276514225,-150.0,0.00013228,2]
[341900420,1731276514249,-18330.78625702,0.00013259,2]
[341900421,1731276564007,12681.52853023,0.000145,30]
[341900422,1731276564033,41667.048343,0.000145,30]
[341900423,1731276564054,10034.571529,0.000145,30]
[341900424,1731276564075,40000.0,0.000145,30]
[341900425,1731276564099,20000.0,0.000145,30]
[341900426,1731276564119,9482.70924269,0.000145,30]
[341900454,1731276631883,-602.16753536,0.00013167,2]
[341900455,1731276631893,-5569.21374298,0.00013259,2]
[341900456,1731276631902,-200.0,0.00013267,2]
[341900457,1731276631912,-419.43,0.00013281,2]
[341900458,1731276631921,-177.93,0.00013308,2]
[341900459,1731276631931,-705.19,0.00013314,2]
[341900460,1731276631940,-3140.0,0.00013314,2]
[341900461,1731276631949,-1000.0,0.00013326,2]
[341900462,1731276631959,-167.31,0.00013438,2]
[341900463,1731276631968,-167.31,0.00013465,2]
[341900464,1731276631977,-167.31,0.00013492,2]
[341900465,1731276631988,-300.0,0.00013499,2]
[341900466,1731276631998,-500.0,0.000135,2]
[341900467,1731276632007,-161.764344,0.000135,2]
[341900468,1731276632017,-167.31,0.00013519,2]
[341900469,1731276632027,-1539.7,0.00013522,2]
[341900471,1731276632036,-167.31,0.00013546,2]
[341900473,1731276632045,-167.31,0.00013572,2]
[341900475,1731276632054,-400.0,0.000139,5]
[341900476,1731276632064,-177.93,0.00013973,2]
[341900478,1731276632073,-150.9,0.00014,2]
[341900479,1731276632082,-500.0,0.00014,2]
[341900481,1731276632091,-900.0,0.00014,5]
[341900483,1731276632100,-1400.0,0.000141,5]
[341900485,1731276632110,-1900.0,0.000142,5]
[341900487,1731276632119,-2400.0,0.000143,5]
[341900489,1731276632128,-400.0,0.000144,5]
[341900491,1731276632138,-150.0,0.000145,2]
[341900493,1731276632150,-17903.72383379,0.000145,2]
[341900495,1731276632159,-400.0,0.000145,5]
[341900497,1731276632168,-150.0,0.00014572,2]
[341900499,1731276632178,-400.0,0.000146,5]
[341900501,1731276632187,-182.07906298,0.00014621,2]
[341900502,1731276632196,-5194.46110089,0.00014621,2]
[341900504,1731276632227,-2485.34269911,0.00014621,2]
[341900505,1731276632239,-14535.9575824,0.00014622,2]
[341900506,1731276632493,-799.236409,0.00014622,2]
[341900516,1731276637670,-833.54888666,0.00014622,2]
[341900524,1731276639742,-1578.3233726,0.00014622,2]
[341900525,1731276639754,-5016.26615201,0.00014622,2]
[341900526,1731276639766,-1326.10222659,0.00014622,2]
[341900527,1731276639778,-1433.61259454,0.00014622,2]
[341900528,1731276639789,-325.9851762,0.00014622,2]
[341900529,1731276639799,-177.93,0.00014639,2]
[341900530,1731276639808,-182.07906296,0.00014639,2]
[341900531,1731276639818,-157.14,0.00014647,2]
[341900532,1731276639828,-182.07906296,0.00014658,2]
[341900533,1731276639837,-182.07906296,0.00014676,2]
[341900534,1731276639847,-48.12138006,0.00014692,2]
[341900535,1731276639858,-151.87861994,0.00014692,2]
[341900536,1731276639867,-439.75173005,0.00014693,2]
[341900550,1731276642717,-23.07543498,0.00014693,2]
[341900552,1731276642727,-2947.7051864,0.00014693,2]
[341900553,1731276642738,-1508.93319437,0.00014693,2]
[341900554,1731276642751,-152.94656242,0.00014694,2]
[341900555,1731276642761,-182.07906296,0.00014695,2]
[341900556,1731276642770,-400.0,0.000147,5]
[341900557,1731276642780,-280.09,0.0001471,3]
[341900558,1731276642789,-840.28,0.0001471,3]
[341900559,1731276642798,-182.07906296,0.00014713,2]
[341900560,1731276642808,-344.55582749,0.0001472,2]
[341900561,1731276642817,-500.0,0.0001472,2]
[341900562,1731276642826,-500.0,0.0001472,2]
[341900563,1731276642835,-301.38230662,0.0001472,2]
[341900564,1731276642845,-500.0,0.0001472,2]
[341900565,1731276642855,-500.0,0.0001472,2]
[341900566,1731276642864,-500.0,0.0001472,2]
[341900567,1731276642873,-500.0,0.0001472,2]
[341900568,1731276642883,-500.0,0.0001472,2]
[341900569,1731276642892,-500.0,0.0001472,2]
[341900570,1731276642902,-825.54,0.0001472,2]
[341900571,1731276642911,-500.0,0.0001472,2]
[341900572,1731276642920,-500.0,0.0001472,2]
[341900573,1731276642930,-500.0,0.0001472,2]
[341900574,1731276642939,-500.0,0.0001472,2]
[341900575,1731276642949,-216.74246096,0.0001472,2]
[341900576,1731276642961,-283.25753904,0.0001472,2]
[341900577,1731276642970,-282.664659,0.0001472,2]
[341900578,1731276642980,-1459.43,0.0001472,2]
[341900579,1731276642989,-500.0,0.0001472,2]
[341900580,1731276643006,-1212.64,0.0001472,2]
[341900581,1731276643016,-14468.82,0.0001472,2]
[341900582,1731276643026,-500.0,0.0001472,2]
[341900583,1731276643036,-500.0,0.0001472,2]
[341900584,1731276643046,-151.0748,0.0001472,2]
[341900585,1731276643055,-154.663546,0.0001472,2]
[341900586,1731276643065,-233.624889,0.0001472,2]
[341900587,1731276643075,-500.0,0.0001472,2]
[341900589,1731276643085,-902.92,0.0001472,2]
[341900591,1731276643095,-832.05,0.0001472,2]
[341900593,1731276643105,-11076.17,0.0001472,2]
[341900595,1731276643114,-708.54,0.0001472,2]
[341900597,1731276643123,-500.0,0.0001472,2]
[341900599,1731276643132,-999.67,0.0001472,2]
[341900601,1731276643141,-744.93,0.0001472,2]
[341900603,1731276643152,-638.74,0.0001472,2]
[341900605,1731276643163,-500.0,0.0001472,2]
[341900607,1731276643172,-500.0,0.0001472,2]
[341900608,1731276643182,-500.0,0.0001472,2]
[341900610,1731276643191,-500.0,0.0001472,2]
[341900612,1731276643201,-500.0,0.0001472,2]
[341900614,1731276643211,-3851.7,0.0001472,2]
[341900616,1731276643221,-3851.7,0.0001472,2]
[341900618,1731276643233,-3851.7,0.0001472,2]
[341900620,1731276643246,-3851.7,0.0001472,2]
[341900622,1731276643258,-500.0,0.0001472,2]
[341900624,1731276643267,-2863.49,0.0001472,2]
[341900626,1731276643277,-500.0,0.0001472,2]
[341900628,1731276643286,-500.0,0.0001472,2]
[341900630,1731276643297,-500.0,0.0001472,2]
[341900632,1731276643307,-500.0,0.0001472,2]
[341900634,1731276643316,-10485.98,0.0001472,2]
[341900636,1731276643325,-9574.53456696,0.0001472,2]
[341900642,1731276643371,-129.63543304,0.0001472,2]
[341900643,1731276643381,-9704.17,0.0001472,2]
[341900646,1731276643390,-9704.17,0.0001472,2]
[341900647,1731276643400,-1215.32033896,0.0001472,2]
[341900650,1731276643412,-8488.84966104,0.0001472,2]
[341900652,1731276643421,-641.24,0.0001472,2]
[341900654,1731276643430,-11518.84,0.0001472,2]
[341900656,1731276643440,-500.0,0.0001472,2]
[341900658,1731276643449,-500.0,0.0001472,2]
[341900660,1731276643458,-500.0,0.0001472,2]
[341900662,1731276643468,-1937.99,0.0001472,2]
[341900689,1731276643719,-500.0,0.0001472,2]
[341900691,1731276643730,-500.0,0.0001472,2]
[341900693,1731276643739,-6645.81071966,0.0001472,2]
[341900695,1731276643755,-1847.51928034,0.0001472,2]
[341900697,1731276643765,-500.0,0.0001472,2]
[341900699,1731276643774,-293.90268435,0.0001472,2]
[341900701,1731276643783,-1061.01,0.0001472,2]
[341900703,1731276643792,-500.0,0.0001472,2]
[341900705,1731276643803,-500.0,0.0001472,2]
[341900707,1731276643813,-500.0,0.0001472,2]
[341900709,1731276643823,-364.18965525,0.0001472,2]
[341900712,1731276643832,-500.0,0.0001472,2]
[341900714,1731276643843,-500.0,0.0001472,2]
[341900716,1731276643854,-500.0,0.0001472,2]
[341900718,1731276643863,-500.0,0.0001472,2]
[341900720,1731276643873,-500.0,0.0001472,2]
[341900722,1731276643883,-500.0,0.0001472,2]
[341900724,1731276643892,-500.0,0.0001472,2]
[341900726,1731276643901,-382.15377448,0.0001472,2]
[341900728,1731276643910,-500.0,0.0001472,2]
[341900730,1731276643919,-977.36,0.0001472,2]
[341900731,1731276643928,-977.36,0.0001472,2]
[341900733,1731276643938,-977.36,0.0001472,2]
[341900735,1731276643947,-977.36,0.0001472,2]
[341900737,1731276643956,-500.0,0.0001472,2]
[341900739,1731276643965,-9008.83,0.0001472,2]
[341900741,1731276643974,-1769.12,0.0001472,2]
[341900743,1731276643983,-1769.12,0.0001472,2]
[341900745,1731276643996,-1769.12,0.0001472,2]
[341900747,1731276644006,-1769.12,0.0001472,2]
[341900749,1731276644015,-500.0,0.0001472,2]
[341900752,1731276644024,-500.0,0.0001472,2]
[341900753,1731276644034,-500.0,0.0001472,2]
[341900755,1731276644043,-500.0,0.0001472,2]
[341900757,1731276644052,-7545.96019218,0.00014721,2]
[341900760,1731276644069,-3175.64246476,0.00014721,2]
[341900763,1731276644085,-967.1772,0.00014721,2]
[341900765,1731276644097,-11986.25000002,0.00014721,2]
[341900767,1731276644108,-13842.606,0.00014721,2]
[341900771,1731276644135,-16081.89230979,0.00014721,2]
[341900774,1731276644153,-800.2974,0.00014721,2]
[341900884,1731276645917,-6358.01816516,0.00014721,2]
[341900896,1731276646299,-838.48773852,0.00014721,2]
[341900897,1731276646311,-333.46904439,0.00014721,2]
[341900898,1731276646322,-368.73042129,0.00014721,2]
[341900899,1731276646343,-160457.63073152,0.00014721,2]
[341900900,1731276646357,-9542.61808062,0.00014721,2]
[341900901,1731276646373,-1805.3201187,0.00014721,2]
[341900902,1731276866736,1422.58,0.0001184,2]
[341900903,1731276935324,279.65219664,0.00015,15]
[341900914,1731277596681,1351.45,0.00011482,2]
[341900948,1731277831769,-668.33,0.00013342,2]
[341900949,1731277831778,-250.0,0.00013344,2]
[341900950,1731277831787,-704.91,0.00013345,2]
[341900951,1731277831808,-295.09,0.00013345,2]
[341900952,1731277831818,-346.52,0.00013345,2]
[341900953,1731277831827,-150.0,0.00013348,2]
[341900954,1731277831836,-126.00691343,0.00013381,2]
[341900955,1731277831851,-73.99308657,0.00013381,2]
[341900956,1731277831860,-495.54,0.00013384,2]
[341900957,1731277831869,-1092.99610686,0.00013392,2]
[341900958,1731277831881,-1611.31619998,0.00013392,2]
[341900959,1731277831892,-21195.68769316,0.00013392,2]
[341900960,1731277831901,-6729.16,0.00013429,2]
[341900961,1731277831910,-529.82,0.00013474,2]
[341900962,1731277831919,-150.99,0.00013474,2]
[341900963,1731277831928,-193.45,0.00013584,2]
[341900964,1731277831938,-1852.42,0.00013646,2]
[341900965,1731277831947,-200.0,0.00013699,2]
[341900966,1731277831956,-250.0,0.00013719,2]
[341900967,1731277831966,-168.98,0.00013743,2]
[341900968,1731277831975,-1351.45,0.00013746,2]
[341900969,1731277831987,-193.45,0.00014263,2]
[341900970,1731277831997,-151.05,0.00014352,2]
[341900971,1731277832007,-1000.0,0.00014618,2]
[341900972,1731277832017,-377.34066613,0.00014618,2]
[341900973,1731277832026,-3576.2363,0.0001462,2]
[341900974,1731277832036,-843.5656,0.0001462,2]
[341900975,1731277832046,-264.19,0.0001462,2]
[341900976,1731277832055,-150.0,0.0001462,2]
[341900977,1731277832065,-152.94656242,0.00014621,2]
[341900978,1731277832075,-377.34066605,0.00014649,2]
[341900979,1731277832084,-150.0,0.00014665,2]
[341900980,1731277832094,-377.34066605,0.0001468,2]
[341900981,1731277832104,-225.19254502,0.000147,2]
[341900982,1731277832113,-560.18,0.00014708,3]
[341900983,1731277832123,-377.34066605,0.00014712,2]